[Event "4NCL Hull GM 2021"]
[Site "Hull"]
[Date "2021.10.21"]
[Round "3.4"]
[White "Turner, Matthew J"]
[Black "Jackson, James P"]
[Result "0-1"]
[ECO "E62"]
[WhiteElo "2471"]
[BlackElo "2386"]
[Annotator "ChessBase"]
[PlyCount "236"]
[EventDate "2021.10.20"]
[EventType "tourn"]
[EventCountry "ENG"]
[SourceTitle "playchess.com"]
[Source "ChessBase"]
[SourceQuality "1"]
[TimeControl "5400+30"]

1. d4 {[%emt 0:00:06]} Nf6 {[%emt 0:00:05]} 2. Nf3 {[%emt 0:00:18]} g6 {[%emt 0:00:13]} 3. c4 {[%emt 0:00:30]} Bg7 {[%emt 0:00:15]} 4. g3 {[%emt 0:00:11]} O-O {[%emt 0:00:06]} 5. Bg2 {[%emt 0:00:04]} d6 {[%emt 0:00:05]} 6. O-O {[%emt 0:00:51]} Nc6 {[%emt 0:00:49]} 7. Nc3 {[%emt 0:01:56]} e5 {[%emt 0:00:44]} 8. dxe5 {[%emt 0:00:56]} dxe5 {[%emt 0:00:06]} 9. Bg5 {[%emt 0:00:24]} Be6 {[%emt 0:00:06]} 10. Nd2 {[%emt 0:00:34]} Qc8 {[%emt 0:00:35]} 11. Nd5 {[%emt 0:01:45]} Nd7 {[%emt 0:03:33]} 12. b4 {[%emt 0:00:57]} Kh8 {[%emt 0:10:10]} 13. Nb3 {[%emt 0:07:00]} f5 {[%emt 0:04:56]} 14. Qd2 {[%emt 0:04:50]} e4 {[%emt 0:03:30]} 15. Rac1 {[%emt 0:04:18]} Nce5 {[%emt 0:02:12]} 16. Bh6 {[%emt 0:19:34]} Bxh6 {[%emt 0:22:54]} 17. Qxh6 {[%emt 0:00:14]} Nxc4 {[%emt 0:05:02]} 18. Nf4 {[%emt 0:00:23]} Nde5 {[%emt 0:00:08]} 19. f3 {[%emt 0:00:27]} exf3 {[%emt 0:10:01]} 20. exf3 {[%emt 0:00:41]} Bf7 {[%emt 0:04:50]} 21. Rfe1 {[%emt 0:03:16]} Qd8 {[%emt 0:03:24]} 22. Nc5 {[%emt 0:02:52]} Rg8 {[%emt 0:10:40]} 23. Nfe6 {[%emt 0:07:57]} Bxe6 {[%emt 0:03:49]} 24. Nxe6 {[%emt 0:00:06]} Qf6 {[%emt 0:05:14]} 25. Nc5 {[%emt 0:10:35]} Rad8 {[%emt 0:06:01]} 26. Nxb7 {[%emt 0:06:35]} Rd4 {[%emt 0:02:45]} 27. Rcd1 {[%emt 0:01:46]} Qb6 {[%emt 0:00:33]} 28. Nc5 {[%emt 0:00:41]} Qxb4 {[%emt 0:00:21]} 29. Nb3 {[%emt 0:00:45]} Rd6 {[%emt 0:00:44]} 30. Qc1 {[%emt 0:02:41]} Rgd8 {[%emt 0:00:30]} 31. Rxd6 {[%emt 0:01:03]} Rxd6 {[%emt 0:00:37]} 32. Qa1 {[%emt 0:00:17]} Nb2 {[%emt 0:00:56]} 33. Rb1 {[%emt 0:03:15]} Qb6+ {[%emt 0:00:09]} 34. Kh1 {[%emt 0:00:14]} Nbd3 {[%emt 0:00:04]} 35. Bf1 {[%emt 0:01:11]} Qe3 {[%emt 0:00:47]} 36. Bxd3 {[%emt 0:02:10]} Qxf3+ {[%emt 0:00:12]} 37. Kg1 {[%emt 0:00:04]} Qe3+ {[%emt 0:00:24]} 38. Kh1 {[%emt 0:00:15]} Qf3+ {[%emt 0:01:00]} 39. Kg1 {[%emt 0:00:04]} Qe3+ {[%emt 0:00:04]} 40. Kh1 {[%emt 0:00:06]} Rxd3 {[%emt 0:00:24]} 41. Re1 {[%emt 0:00:16]} Qf3+ {[%emt 0:00:05]} 42. Kg1 {[%emt 0:00:13]} Re3 {[%emt 0:00:05]} 43. Nd2 {[%emt 0:03:30]} Rxe1+ {[%emt 0:00:18]} 44. Qxe1 {[%emt 0:00:04]} Qd5 {[%emt 0:00:07]} 45. Qe3 {[%emt 0:00:18]} c5 {[%emt 0:01:26]} 46. Nb3 {[%emt 0:00:38]} c4 {[%emt 0:01:23]} 47. Nd2 {[%emt 0:00:06]} a5 {[%emt 0:00:36]} 48. Qa3 {[%emt 0:00:55]} Kg7 {[%emt 0:00:45]} 49. Qe7+ {[%emt 0:00:23]} Nf7 {[%emt 0:00:11]} 50. Qe3 {[%emt 0:00:36]} Ne5 {[%emt 0:00:42]} 51. Qa7+ {[%emt 0:00:17]} Kg8 {[%emt 0:00:29]} 52. Qb8+ {[%emt 0:00:38]} Kf7 {[%emt 0:00:48]} 53. Qa7+ {[%emt 0:00:12]} Ke6 {[%emt 0:00:30]} 54. Qa6+ {[%emt 0:01:13]} Qd6 {[%emt 0:00:26]} 55. Qc8+ {[%emt 0:00:05]} Ke7 {[%emt 0:00:36]} 56. Qh8 {[%emt 0:02:11]} h5 {[%emt 0:00:09]} 57. Qg7+ {[%emt 0:00:18]} Kd8 {[%emt 0:00:11]} 58. Qg8+ {[%emt 0:00:29]} Kc7 {[%emt 0:00:13]} 59. Qg7+ {[%emt 0:00:18]} Kc6 {[%emt 0:00:40]} 60. Nf1 {[%emt 0:00:23]} Qd4+ {[%emt 0:00:38]} 61. Kg2 {[%emt 0:00:05]} c3 {[%emt 0:01:10]} 62. Qf8 {[%emt 0:00:32]} Qd5+ {[%emt 0:00:30]} 63. Kh3 {[%emt 0:00:11]} Qd3 {[%emt 0:00:31]} 64. Qe8+ {[%emt 0:00:50]} Kd5 {[%emt 0:00:32]} 65. Qd8+ {[%emt 0:00:47]} Ke4 {[%emt 0:00:27]} 66. Qa8+ {[%emt 0:00:07]} Qd5 {[%emt 0:00:14]} 67. Qa7 {[%emt 0:00:43]} Ng4 {[%emt 0:00:38]} 68. Qc7 {[%emt 0:00:52]} Kd3 {[%emt 0:00:39]} 69. Kh4 {[%emt 0:00:39]} Ne5 {[%emt 0:00:31]} 70. Kg5 {[%emt 0:00:21]} c2 {[%emt 0:00:31]} 71. Qxc2+ {[%emt 0:00:05]} Kxc2 {[%emt 0:00:16]} 72. Ne3+ {[%emt 0:00:03]} Kb2 {[%emt 0:00:11]} 73. Nxd5 {[%emt 0:00:04]} Kxa2 {[%emt 0:00:50]} 74. Kf6 {[%emt 0:00:06]} Ng4+ {[%emt 0:00:34]} 75. Kxg6 {[%emt 0:00:05]} Nxh2 {[%emt 0:00:10]} 76. Kxf5 {[%emt 0:00:16]} Kb3 {[%emt 0:00:52]} 77. Nb6 {[%emt 0:00:10]} Nf1 {[%emt 0:00:13]} 78. Kf4 {[%emt 0:00:31]} Kb4 {[%emt 0:00:45]} 79. Nd5+ {[%emt 0:00:23]} Kc4 {[%emt 0:00:25]} 80. Nb6+ {[%emt 0:00:07]} Kd4 {[%emt 0:00:39]} 81. Na4 {[%emt 0:00:22]} Ne3 {[%emt 0:00:33]} 82. Kg5 {[%emt 0:00:17]} Nf1 {[%emt 0:00:15]} 83. Kf4 {[%emt 0:01:59]} Kd3 {[%emt 0:00:31]} 84. Kf3 {[%emt 0:01:27]} Nd2+ {[%emt 0:00:44]} 85. Kf4 {[%emt 0:00:07]} Kc4 {[%emt 0:00:28]} 86. Kg5 {[%emt 0:00:48]} Kb3 {[%emt 0:00:31]} 87. Nc5+ {[%emt 0:01:07]} Kb4 {[%emt 0:00:29]} 88. Nd3+ {[%emt 0:00:18]} Kc4 {[%emt 0:00:30]} 89. Nb2+ {[%emt 0:00:09]} Kb3 {[%emt 0:00:11]} 90. Nd3 {[%emt 0:00:07]} Kc2 {[%emt 0:00:32]} 91. Nc5 {[%emt 0:00:42]} Ne4+ {[%emt 0:00:46]} 92. Nxe4 {[%emt 0:00:48]} a4 {[%emt 0:00:04]} 93. Kxh5 {[%emt 0:00:38]} a3 {[%emt 0:00:04]} 94. g4 {[%emt 0:00:14]} a2 {[%emt 0:00:04]} 95. g5 {[%emt 0:00:05]} a1=Q {[%emt 0:00:05]} 96. Nf6 {[%emt 0:00:11]} Kd3 {[%emt 0:00:24]} 97. Kg6 {[%emt 0:00:24]} Kd4 {[%emt 0:00:35]} 98. Kf5 {[%emt 0:01:45]} Qb1+ {[%emt 0:00:15]} 99. Kf4 {[%emt 0:00:21]} Qf1+ {[%emt 0:00:30]} 100. Kg4 {[%emt 0:00:04]} Ke5 {[%emt 0:00:17]} 101. Nd7+ {[%emt 0:00:14]} Ke6 {[%emt 0:00:13]} 102. Nf6 {[%emt 0:00:25]} Kf7 {[%emt 0:01:10]} 103. Nh5 {[%emt 0:01:02]} Qe2+ {[%emt 0:00:27]} 104. Kh4 {[%emt 0:00:06]} Qe4+ {[%emt 0:00:10]} 105. Kg3 {[%emt 0:00:15]} Kg6 {[%emt 0:00:09]} 106. Nf4+ {[%emt 0:00:04]} Kxg5 {[%emt 0:00:07]} 107. Nh3+ {[%emt 0:00:05]} Kf5 {[%emt 0:00:04]} 108. Nf2 {[%emt 0:00:06]} Qd5 {[%emt 0:00:22]} 109. Nh3 {[%emt 0:00:43]} Qd3+ {[%emt 0:00:28]} 110. Kg2 {[%emt 0:00:04]} Qe2+ {[%emt 0:00:13]} 111. Kg3 {[%emt 0:00:06]} Qg4+ {[%emt 0:00:05]} 112. Kh2 {[%emt 0:00:04]} Qg7 {[%emt 0:00:10]} 113. Ng1 {[%emt 0:01:34]} Kf4 {[%emt 0:00:06]} 114. Nh3+ {[%emt 0:00:05]} Kf3 {[%emt 0:00:04]} 115. Ng1+ {[%emt 0:00:03]} Kf2 {[%emt 0:00:03]} 116. Nh3+ {[%emt 0:00:03]} Kf1 {[%emt 0:00:03]} 117. Nf4 {[%emt 0:00:08]} Qg4 {[%emt 0:00:04]} 118. Ng2 {[%emt 0:00:05]} Qxg2# {[%emt 0:00:05]} 0-1

[Event "4NCL Hull GM 2021"]
[Site "Hull"]
[Date "2021.10.21"]
[Round "3.5"]
[White "Royal, Shreyas"]
[Black "Fodor, Tamas Jr."]
[Result "0-1"]
[ECO "A52"]
[WhiteElo "2226"]
[BlackElo "2524"]
[Annotator "ChessBase"]
[PlyCount "126"]
[EventDate "2021.10.20"]
[EventType "tourn"]
[EventCountry "ENG"]
[SourceTitle "playchess.com"]
[Source "ChessBase"]
[SourceQuality "1"]
[TimeControl "5400+30"]

1. d4 {[%emt 0:00:03]} Nf6 {[%emt 0:00:09]} 2. c4 {[%emt 0:00:06]} e5 {[%emt 0:00:05]} 3. dxe5 {[%emt 0:00:11]} Ng4 {[%emt 0:00:08]} 4. Nf3 {[%emt 0:00:35]} Nc6 {[%emt 0:04:25]} 5. Bf4 {[%emt 0:00:32]} Bb4+ {[%emt 0:00:08]} 6. Nbd2 {[%emt 0:02:09]} Qe7 {[%emt 0:00:08]} 7. e3 {[%emt 0:00:14]} Ngxe5 {[%emt 0:00:08]} 8. Nxe5 {[%emt 0:01:03]} Nxe5 {[%emt 0:00:05]} 9. Be2 {[%emt 0:00:05]} d6 {[%emt 0:01:24]} 10. O-O {[%emt 0:00:58]} a5 {[%emt 0:00:06]} 11. Rc1 {[%emt 0:10:53]} O-O {[%emt 0:06:05]} 12. Nf3 {[%emt 0:04:39]} Ng6 {[%emt 0:04:05]} 13. Bg3 {[%emt 0:00:43]} a4 {[%emt 0:00:19]} 14. Nd4 {[%emt 0:06:26]} f5 {[%emt 0:02:30]} 15. Qc2 {[%emt 0:13:52]} Bc5 {[%emt 0:04:20]} 16. Rcd1 {[%emt 0:01:12]} Kh8 {[%emt 0:03:23]} 17. Nb5 {[%emt 0:04:47]} a3 {[%emt 0:23:50]} 18. b3 {[%emt 0:03:23]} Ne5 {[%emt 0:04:31]} 19. Qd2 {[%emt 0:12:13]} Nc6 {[%emt 0:02:01]} 20. Nc3 {[%emt 0:01:11]} Be6 {[%emt 0:02:27]} 21. Bf3 {[%emt 0:00:28]} Qf6 {[%emt 0:02:32]} 22. Bxc6 {[%emt 0:06:56]} bxc6 {[%emt 0:00:18]} 23. Na4 {[%emt 0:00:05]} Rxa4 {[%emt 0:02:28]} 24. bxa4 {[%emt 0:00:17]} Bxc4 {[%emt 0:00:07]} 25. Rfe1 {[%emt 0:00:16]} Qb2 {[%emt 0:00:19]} 26. Qc1 {[%emt 0:05:49]} Bxa2 {[%emt 0:02:12]} 27. Rd2 {[%emt 0:00:12]} Qxc1 {[%emt 0:02:51]} 28. Rxc1 {[%emt 0:00:10]} Bd5 {[%emt 0:00:42]} 29. Rxc5 {[%emt 0:02:24]} dxc5 {[%emt 0:00:16]} 30. Bxc7 {[%emt 0:00:03]} a2 {[%emt 0:02:41]} 31. Rd1 {[%emt 0:00:26]} Ra8 {[%emt 0:05:54]} 32. a5 {[%emt 0:03:23]} c4 {[%emt 0:03:06]} 33. f3 {[%emt 0:03:09]} c3 {[%emt 0:00:33]} 34. Kf2 {[%emt 0:01:28]} Bc4 {[%emt 0:01:01]} 35. Ra1 {[%emt 0:05:55]} c2 {[%emt 0:00:20]} 36. Bb6 {[%emt 0:02:17]} c5 {[%emt 0:10:30]} 37. Ke1 {[%emt 0:01:49]} Bb3 {[%emt 0:00:21]} 38. Kd2 {[%emt 0:01:43]} c4 {[%emt 0:00:04]} 39. Kc3 {[%emt 0:00:38]} Kg8 {[%emt 0:00:04]} 40. Kd4 {[%emt 0:01:46]} Kf7 {[%emt 0:00:07]} 41. Kd5 {[%emt 0:00:04]} Ke7 {[%emt 0:02:36]} 42. Kc6 {[%emt 0:00:29]} c3 {[%emt 0:01:37]} 43. Rc1 {[%emt 0:00:55]} Ke6 {[%emt 0:01:39]} 44. Kb5 {[%emt 0:01:54]} Rc8 {[%emt 0:01:22]} 45. Kb4 {[%emt 0:00:18]} Bd5 {[%emt 0:00:05]} 46. Bd4 {[%emt 0:01:29]} Rc4+ {[%emt 0:00:10]} 47. Kb5 {[%emt 0:01:10]} Rc8 {[%emt 0:02:42]} 48. Kb4 {[%emt 0:00:31]} f4 {[%emt 0:00:04]} 49. Ra1 {[%emt 0:01:58]} fxe3 {[%emt 0:01:20]} 50. Bxe3 {[%emt 0:00:02]} Kd7 {[%emt 0:00:09]} 51. Bc5 {[%emt 0:00:37]} g5 {[%emt 0:00:49]} 52. h3 {[%emt 0:00:19]} h6 {[%emt 0:00:05]} 53. Rc1 {[%emt 0:00:20]} Rc6 {[%emt 0:00:30]} 54. Ra1 {[%emt 0:00:45]} Kc8 {[%emt 0:00:06]} 55. Rc1 {[%emt 0:00:45]} Kb7 {[%emt 0:00:04]} 56. Ra1 {[%emt 0:00:04]} Ka6 {[%emt 0:00:06]} 57. Rc1 {[%emt 0:00:22]} Bf7 {[%emt 0:00:10]} 58. Ra1 {[%emt 0:00:38]} Rc7 {[%emt 0:00:36]} 59. g3 {[%emt 0:01:13]} Rd7 {[%emt 0:00:14]} 60. Be3 {[%emt 0:00:03]} Rd3 {[%emt 0:00:22]} 61. Bc1 {[%emt 0:00:15]} Rxf3 {[%emt 0:00:05]} 62. h4 {[%emt 0:00:03]} Rxg3 {[%emt 0:00:11]} 63. hxg5 {[%emt 0:00:05]} hxg5 {[%emt 0:00:05]} 0-1

[Event "4NCL Hull GM 2021"]
[Site "Hull"]
[Date "2021.10.22"]
[Round "4.4"]
[White "Murphy, Conor E"]
[Black "Czopor, Maciej"]
[Result "1/2-1/2"]
[ECO "B85"]
[WhiteElo "2428"]
[BlackElo "2411"]
[Annotator "RC"]
[PlyCount "93"]
[EventDate "2021.10.20"]
[EventType "tourn"]
[EventCountry "ENG"]
[SourceTitle "playchess.com"]
[Source "ChessBase"]
[SourceQuality "1"]
[TimeControl "5400+30"]

1. e4 {[%emt 0:08:15]} c5 {[%emt 0:00:07]} 2. Nf3 {[%emt 0:00:10]} e6 {[%emt 0:00:07]} 3. d4 {[%emt 0:00:06]} cxd4 {[%emt 0:00:05]} 4. Nxd4 {[%emt 0:00:06]} Nc6 {[%emt 0:00:05]} 5. Nc3 {[%emt 0:00:09]} Qc7 {[%emt 0:00:06]} 6. Be2 {[%emt 0:00:50]} a6 {[%emt 0:00:25]} 7. O-O {[%emt 0:00:19]} Nf6 {[%emt 0:00:04]} 8. Be3 {[%emt 0:00:08]} Be7 {[%emt 0:00:05]} 9. f4 {[%emt 0:00:29]} d6 {[%emt 0:00:06]} 10. Qe1 {[%emt 0:00:16]} O-O {[%emt 0:00:11]} 11. Qg3 {[%emt 0:00:07]} Nxd4 {[%emt 0:04:36]} 12. Bxd4 {[%emt 0:00:08]} b5 {[%emt 0:00:19]} 13. a3 {[%emt 0:00:08]} Bb7 {[%emt 0:00:21]} 14. Kh1 {[%emt 0:00:15]} Rad8 {[%emt 0:03:38]} 15. Rae1 {[%emt 0:00:25]} Bc6 {[%emt 0:00:36]} 16. Bf3 {[%emt 0:01:53]} Qb7 {[%emt 0:12:31]} 17. Nd1 {[%emt 0:00:47]} d5 {[%emt 0:18:40]} 18. e5 {[%emt 0:01:39]} Ne4 {[%emt 0:00:11]} 19. Bxe4 {[%emt 0:00:36]} dxe4 {[%emt 0:00:04]} 20. Bc3 {[%emt 0:00:12]} b4 {[%emt 0:09:54]} 21. axb4 {[%emt 0:09:00]} Bxb4 {[%emt 0:00:11]} 22. f5 {[%emt 0:00:19]} exf5 {[%emt 0:01:03]} 23. Rxf5 {[%emt 0:21:03]} Bxc3 {[%emt 0:05:23]} 24. bxc3 {[%emt 0:01:57]} Qe7 {[%emt 0:15:35]} 25. Rf6 {[%emt 0:14:32]} Bd7 {[%emt 0:01:14]} 26. Rxa6 {[%emt 0:02:57]} Rfe8 {[%emt 0:04:56]} 27. Ne3 {[%emt 0:11:28]} Qxe5 {[%emt 0:02:22]} 28. Qxe5 {[%emt 0:06:05]} Rxe5 {[%emt 0:00:07]} 29. Rd1 {[%emt 0:01:45]} Kf8 {[%emt 0:01:58]} 30. Rad6 {[%emt 0:02:51]} Ke7 {[%emt 0:01:29]} 31. R6d4 {[%emt 0:06:55]} f5 {[%emt 0:02:18]} 32. Nd5+ {[%emt 0:01:51]} Ke8 {[%emt 0:01:45]} 33. Kg1 {[%emt 0:04:23]} e3 {[%emt 0:01:56]} 34. Re1 {[%emt 0:01:06]} Rc8 {[%emt 0:01:07]} 35. Rd3 {[%emt 0:02:01]} Be6 {[%emt 0:04:22]} 36. Rdxe3 {[%emt 0:00:37]} Rxe3 {[%emt 0:00:09]} 37. Rxe3 {[%emt 0:00:06]} Kf7 {[%emt 0:00:09]} 38. Nf4 {[%emt 0:00:21]} Bc4 {[%emt 0:00:27]} 39. Kf2 {[%emt 0:01:15]} g5 {[%emt 0:00:36]} 40. Nd3 {[%emt 0:00:28]} Kf6 {[%emt 0:02:25]} 41. g3 {[%emt 0:00:54]} Bd5 {[%emt 0:01:04]} 42. Ne5 {[%emt 0:01:19]} Be4 {[%emt 0:00:33]} 43. Nd7+ {[%emt 0:00:58]} Ke6 {[%emt 0:00:19]} 44. Nb6 {[%emt 0:00:08]} Rc6 {[%emt 0:00:42]} 45. Na4 {[%emt 0:00:11]} Ke5 {[%emt 0:02:05]} 46. Nb2 {[%emt 0:00:37]} f4 {[%emt 0:00:17]} 47. Nd3+ {[%emt 0:00:08]} 1/2-1/2

[Event "4NCL Hull GM 2021"]
[Site "Hull"]
[Date "2021.10.23"]
[Round "6.1"]
[White "Willow, Jonah B"]
[Black "Jackson, James P"]
[Result "1/2-1/2"]
[ECO "C78"]
[WhiteElo "2353"]
[BlackElo "2386"]
[Annotator "ChessBase"]
[PlyCount "51"]
[EventDate "2021.10.20"]
[EventType "tourn"]
[EventCountry "ENG"]
[SourceTitle "playchess.com"]
[Source "ChessBase"]
[SourceQuality "1"]
[TimeControl "5400+30"]

1. e4 {[%emt 0:00:03]} e5 {[%emt 0:00:06]} 2. Nf3 {[%emt 0:00:04]} Nc6 {[%emt 0:00:04]} 3. Bb5 {[%emt 0:00:13]} a6 {[%emt 0:00:23]} 4. Ba4 {[%emt 0:00:04]} Nf6 {[%emt 0:00:56]} 5. O-O {[%emt 0:00:06]} b5 {[%emt 0:01:43]} 6. Bb3 {[%emt 0:00:12]} Bc5 {[%emt 0:00:04]} 7. c3 {[%emt 0:01:34]} d6 {[%emt 0:00:27]} 8. a4 {[%emt 0:00:05]} Rb8 {[%emt 0:00:11]} 9. d4 {[%emt 0:00:13]} Bb6 {[%emt 0:00:05]} 10. a5 {[%emt 0:00:04]} Ba7 {[%emt 0:00:05]} 11. Nbd2 {[%emt 0:04:08]} O-O {[%emt 0:07:25]} 12. Re1 {[%emt 0:34:39]} exd4 {[%emt 0:16:28]} 13. cxd4 {[%emt 0:02:18]} Nxd4 {[%emt 0:00:06]} 14. Nxd4 {[%emt 0:00:05]} Bxd4 {[%emt 0:00:06]} 15. Nf3 {[%emt 0:00:04]} Ba7 {[%emt 0:01:04]} 16. Bg5 {[%emt 0:01:42]} Bb7 {[%emt 0:09:27]} 17. Qc1 {[%emt 0:06:09]} c5 {[%emt 0:10:44]} 18. Qf4 {[%emt 0:08:31]} h6 {[%emt 0:19:07]} 19. Bh4 {[%emt 0:09:27]} c4 {[%emt 0:05:51]} 20. Bc2 {[%emt 0:00:41]} Re8 {[%emt 0:00:19]} 21. Rad1 {[%emt 0:02:49]} Nh5 {[%emt 0:10:57]} 22. Qg4 {[%emt 0:05:52]} Nf6 {[%emt 0:00:07]} 23. Qg3 {[%emt 0:09:39]} Nh5 {[%emt 0:01:52]} 24. Qg4 {[%emt 0:02:37]} Nf6 {[%emt 0:00:12]} 25. Qf4 {[%emt 0:00:55]} Nh5 {[%emt 0:01:12]} 26. Qg4 {[%emt 0:00:44]} 1/2-1/2

[Event "4NCL Hull GM 2021"]
[Site "Hull"]
[Date "2021.10.23"]
[Round "6.3"]
[White "Murphy, Conor E"]
[Black "Royal, Shreyas"]
[Result "1-0"]
[ECO "C93"]
[WhiteElo "2428"]
[BlackElo "2226"]
[Annotator "NA"]
[PlyCount "85"]
[EventDate "2021.10.20"]
[EventType "tourn"]
[EventCountry "ENG"]
[SourceTitle "playchess.com"]
[Source "ChessBase"]
[SourceQuality "1"]
[TimeControl "5400+30"]

1. e4 {[%emt 0:05:18]} e5 {[%emt 0:00:08]} 2. Nf3 {[%emt 0:00:10]} Nc6 {[%emt 0:00:06]} 3. Bb5 {[%emt 0:00:11]} a6 {[%emt 0:00:06]} 4. Ba4 {[%emt 0:00:13]} Nf6 {[%emt 0:00:07]} 5. O-O {[%emt 0:00:09]} Be7 {[%emt 0:00:05]} 6. Re1 {[%emt 0:00:13]} b5 {[%emt 0:00:20]} 7. Bb3 {[%emt 0:00:28]} d6 {[%emt 0:00:14]} 8. c3 {[%emt 0:00:12]} O-O {[%emt 0:00:11]} 9. h3 {[%emt 0:00:05]} Bb7 {[%emt 0:02:01]} 10. d4 {[%emt 0:00:13]} Re8 {[%emt 0:00:27]} 11. Nbd2 {[%emt 0:00:22]} Bf8 {[%emt 0:00:26]} 12. a3 {[%emt 0:00:48]} h6 {[%emt 0:01:20]} 13. Bc2 {[%emt 0:00:13]} Nb8 {[%emt 0:00:21]} 14. b3 {[%emt 0:00:11]} Nbd7 {[%emt 0:00:32]} 15. Bb2 {[%emt 0:00:08]} g6 {[%emt 0:09:07]} 16. Bd3 {[%emt 0:03:09]} Bg7 {[%emt 0:06:46]} 17. dxe5 {[%emt 0:02:17]} dxe5 {[%emt 0:04:47]} 18. Qc2 {[%emt 0:00:45]} Nc5 {[%emt 0:12:09] [#]} (18... c5 $11) 19. Bf1 $1 {[%emt 0:02:28]} Nfd7 {[%emt 0:01:02]} 20. c4 {[%emt 0:08:05]} c6 {[%emt 0:00:12]} 21. Rad1 {[%emt 0:01:29]} Ne6 {[%emt 0:13:05]} 22. b4 {[%emt 0:03:07]} Qe7 {[%emt 0:14:25]} (22... Qc7 $14) 23. Nb3 {[%emt 0:04:53]} Ng5 {[%emt 0:00:26]} (23... f6 $16 {was called for.}) 24. Nxg5 {[%emt 0:12:30]} hxg5 {[%emt 0:00:08]} 25. Bc1 {[%emt 0:00:29]} Nf8 {[%emt 0:02:45]} 26. Nc5 {[%emt 0:03:51]} Bc8 {[%emt 0:01:49]} 27. Be2 {[%emt 0:16:12]} Ne6 {[%emt 0:02:12]} 28. Nxe6 {[%emt 0:02:17]} Bxe6 {[%emt 0:00:08]} 29. Be3 {[%emt 0:00:45]} Bf8 $16 {[%emt 0:05:09]} 30. Bc5 {[%emt 0:06:22]} Qb7 {[%emt 0:00:07]} 31. Bxf8 {[%emt 0:01:40]} Kxf8 {[%emt 0:00:06]} 32. Rd6 {[%emt 0:04:00]} Qc8 {[%emt 0:08:05]} 33. Red1 {[%emt 0:08:52]} Ra7 {[%emt 0:03:14]} 34. Qc3 {[%emt 0:02:34]} Bxc4 {[%emt 0:02:15]} 35. Bxc4 {[%emt 0:01:16]} bxc4 {[%emt 0:00:04]} 36. Qxc4 {[%emt 0:03:27]} Rc7 {[%emt 0:00:09]} 37. Qc1 {[%emt 0:01:24]} g4 {[%emt 0:00:36]} 38. Qg5 {[%emt 0:00:45]} Rce7 {[%emt 0:01:08]} 39. hxg4 {[%emt 0:00:38]} Qa8 {[%emt 0:01:42]} 40. Qf6 {[%emt 0:01:25]} Kg8 {[%emt 0:00:10]} 41. R1d3 {[%emt 0:00:23]} Re6 {[%emt 0:01:38]} 42. Rxe6 {[%emt 0:00:16]} fxe6 {[%emt 0:00:03]} 43. Rd7 {[%emt 0:00:22]} 1-0

[Event "4NCL Hull GM 2021"]
[Site "Hull"]
[Date "2021.10.23"]
[Round "6.4"]
[White "Wadsworth, Matthew J"]
[Black "Turner, Matthew J"]
[Result "0-1"]
[ECO "A14"]
[WhiteElo "2425"]
[BlackElo "2471"]
[Annotator "ChessBase"]
[PlyCount "144"]
[EventDate "2021.10.20"]
[EventType "tourn"]
[EventCountry "ENG"]
[SourceTitle "playchess.com"]
[Source "ChessBase"]
[SourceQuality "1"]
[TimeControl "5400+30"]

1. c4 {[%emt 0:05:43]} Nf6 {[%emt 0:00:08]} 2. g3 {[%emt 0:00:15]} e6 {[%emt 0:00:20]} 3. Bg2 {[%emt 0:00:12]} d5 {[%emt 0:00:06]} 4. Nf3 {[%emt 0:00:09]} Be7 {[%emt 0:00:22]} 5. O-O {[%emt 0:00:09]} O-O {[%emt 0:00:06]} 6. b3 {[%emt 0:00:03]} b6 {[%emt 0:01:19]} 7. Bb2 {[%emt 0:00:07]} Bb7 {[%emt 0:00:05]} 8. e3 {[%emt 0:00:09]} c5 {[%emt 0:00:28]} 9. Nc3 {[%emt 0:00:29]} Qc8 {[%emt 0:01:15]} 10. Qe2 {[%emt 0:04:12]} Ne4 {[%emt 0:07:42]} 11. d3 {[%emt 0:02:43]} Nxc3 {[%emt 0:00:18]} 12. Bxc3 {[%emt 0:00:02]} Nd7 {[%emt 0:00:46]} 13. Rfd1 {[%emt 0:06:10]} Bf6 {[%emt 0:00:34]} 14. Bxf6 {[%emt 0:00:27]} Nxf6 {[%emt 0:00:05]} 15. Rac1 {[%emt 0:00:43]} dxc4 {[%emt 0:03:50]} 16. Rxc4 {[%emt 0:01:51]} Bd5 {[%emt 0:01:22]} 17. Rh4 {[%emt 0:09:51]} a5 {[%emt 0:07:59]} 18. e4 {[%emt 0:05:38]} Bb7 {[%emt 0:00:27]} 19. e5 {[%emt 0:01:49]} Nd7 {[%emt 0:00:29]} 20. Ng5 {[%emt 0:03:15]} h6 {[%emt 0:00:24]} 21. Ne4 {[%emt 0:00:06]} Bxe4 {[%emt 0:00:39]} 22. Bxe4 {[%emt 0:03:27]} Ra7 {[%emt 0:00:18]} 23. f4 {[%emt 0:02:35]} f5 {[%emt 0:02:26]} 24. Bg2 {[%emt 0:01:28]} a4 {[%emt 0:00:54]} 25. g4 {[%emt 0:01:39]} axb3 {[%emt 0:05:01]} 26. axb3 {[%emt 0:00:01]} Qd8 {[%emt 0:23:51]} 27. Rh5 {[%emt 0:01:02]} Kh7 {[%emt 0:00:39]} 28. gxf5 {[%emt 0:01:39]} exf5 {[%emt 0:00:07]} 29. Rh3 {[%emt 0:02:53]} Qe7 {[%emt 0:15:36]} 30. Qf3 {[%emt 0:11:15]} Rd8 {[%emt 0:02:14]} 31. Qh5 {[%emt 0:07:13]} Qe6 {[%emt 0:00:33]} 32. d4 {[%emt 0:00:05]} cxd4 {[%emt 0:00:28]} 33. Bf1 {[%emt 0:02:44]} Nc5 {[%emt 0:03:29]} 34. Bc4 {[%emt 0:00:24]} Qg6+ {[%emt 0:00:28]} 35. Qxg6+ {[%emt 0:00:07]} Kxg6 {[%emt 0:00:04]} 36. Rg3+ {[%emt 0:00:06]} Kh7 {[%emt 0:00:07]} 37. b4 {[%emt 0:00:16]} b5 {[%emt 0:10:54]} 38. Bd3 {[%emt 0:07:27]} Ne4 {[%emt 0:01:35]} 39. Rg2 {[%emt 0:00:37]} g6 {[%emt 0:00:41]} 40. Rc2 {[%emt 0:01:46]} Nc3 {[%emt 0:00:53]} 41. Re1 {[%emt 0:01:03]} Kg7 {[%emt 0:02:16]} 42. h4 {[%emt 0:02:08]} h5 {[%emt 0:00:41]} 43. Kh2 {[%emt 0:01:22]} Nd5 {[%emt 0:04:29]} 44. Bxb5 {[%emt 0:02:37]} Nxf4 {[%emt 0:01:19]} 45. Kg3 {[%emt 0:08:10]} d3 {[%emt 0:00:42]} 46. Rc4 {[%emt 0:04:30]} Ne2+ {[%emt 0:01:06]} 47. Kf2 {[%emt 0:00:35]} Nd4 {[%emt 0:01:02]} 48. Rc5 {[%emt 0:01:49]} Ra2+ {[%emt 0:00:44]} 49. Kg3 {[%emt 0:00:09]} f4+ {[%emt 0:00:59]} 50. Kxf4 {[%emt 0:00:49]} Ne6+ {[%emt 0:01:34]} 51. Ke4 {[%emt 0:00:06]} Nxc5+ {[%emt 0:00:54]} 52. bxc5 {[%emt 0:00:01]} d2 {[%emt 0:00:14]} 53. Rd1 {[%emt 0:00:07]} Rc2 {[%emt 0:00:32]} 54. e6 {[%emt 0:00:43]} Kf6 {[%emt 0:00:05]} 55. Bd7 {[%emt 0:01:55]} Rxc5 {[%emt 0:00:04]} 56. Rxd2 {[%emt 0:00:26]} Re5+ {[%emt 0:00:10]} 57. Kf4 {[%emt 0:01:02]} Rxe6 {[%emt 0:01:43]} 58. Rd3 {[%emt 0:00:17]} Rb6 {[%emt 0:00:43]} 59. Bb5 {[%emt 0:00:26]} Rxd3 {[%emt 0:00:14]} 60. Bxd3 {[%emt 0:00:00]} Rb4+ {[%emt 0:00:32]} 61. Be4 {[%emt 0:00:02]} Ra4 {[%emt 0:00:15]} 62. Kf3 {[%emt 0:00:29]} Ra3+ {[%emt 0:00:09]} 63. Kg2 {[%emt 0:00:32]} Re3 {[%emt 0:00:54]} 64. Bb1 {[%emt 0:00:09]} Rb3 {[%emt 0:00:28]} 65. Be4 {[%emt 0:00:02]} Re3 {[%emt 0:00:05]} 66. Bb1 {[%emt 0:00:09]} g5 {[%emt 0:00:09]} 67. hxg5+ {[%emt 0:00:12]} Kxg5 {[%emt 0:00:06]} 68. Kf2 {[%emt 0:00:05]} Kf4 {[%emt 0:00:14]} 69. Ba2 {[%emt 0:00:24]} h4 {[%emt 0:00:13]} 70. Bc4 {[%emt 0:00:51]} h3 {[%emt 0:00:12]} 71. Bf1 {[%emt 0:00:26]} Rf3+ {[%emt 0:00:36]} 72. Kg1 {[%emt 0:00:19]} Kg3 {[%emt 0:00:09]} 0-1